Cogmind - Beta 13 @@@ ROGUE MODE // 2024.03.01 @ 13:23:03 Player: Minty Result: Destroyed by D-53 Grenadier with Mini Grenade Launcher Performance ------------- Evolutions (0) 0 Regions Visited (2) 400 Robots Destroyed (19) 95 Value Destroyed (484) 484 Prototype IDs (2) 40 Alien Tech Used (0) 0 Bonus (0) 0 TOTAL SCORE: 1019 Bonus ------- None Cogmind --------- Core Integrity 0/250 Matter 268/300 Energy 229/250 System Corruption 1% Temperature Cool (0) Movement Rolling (105) Ox1 Location -10/Mines Parts ------- > --- POWER (1) -------- Ion Engine > --- PROPULSION (2) --- Wheel Compact Wheel > --- UTILITY (2) ------ Improved Heat Sink Large Storage Unit > --- WEAPON (2) ------- Heavy EM Pulse Gun Flak Cannon > --- INVENTORY (15) --- Ion Engine Wheel Improved Heat Sink Structural Scanner Sensor Array Signal Interpreter Terrain Scanner Terrain Scan Processor Heavy EM Pulse Gun Light EM Pulse Cannon Light EM Pulse Cannon Light EM Pulse Cannon Light EM Pulse Cannon Peak State ------------ > --- POWER ------------ Ion Engine > --- PROPULSION ------- Wheel Compact Wheel > --- UTILITY ---------- Improved Heat Sink Large Storage Unit > --- WEAPON ----------- Heavy EM Pulse Gun Flak Cannon > --- INVENTORY -------- Ion Engine Wheel Improved Heat Sink Structural Scanner Sensor Array Signal Interpreter Terrain Scanner Terrain Scan Processor Heavy EM Pulse Gun Light EM Pulse Cannon Light EM Pulse Cannon Light EM Pulse Cannon Light EM Pulse Cannon [Rating: 14] Favorites ----------- Power Ion Engine Engine Ion Engine Propulsion Compact Wheel Leg Aluminum Leg Wheel Compact Wheel Utility Large Storage Unit Device Structural Scanner Storage Large Storage Unit Processor Terrain Scan Processor Weapon Heavy EM Pulse Gun Energy Gun Heavy EM Pulse Gun Ballistic Cannon Flak Cannon Build | -11 -10 -10 ------- Run | Yrd Mat Min Slots Evolved . | . . . Power . | . . . Propulsion . | . . . Utility . | . . . Weapon . | . . . Parts Attached 19 | . 18 1 Power 2 | . 2 . Engine 2 | . 2 . Core . | . . . Reactor . | . . . Propulsion 4 | . 4 . Treads . | . . . Leg . | . . . Wheel 4 | . 4 . Hover . | . . . Flight . | . . . Utility 6 | . 6 . Device 3 | . 3 . Storage 2 | . 2 . Processor 1 | . 1 . Hackware . | . . . Protection . | . . . Artifact . | . . . Weapon 7 | . 6 1 Energy Gun 6 | . 6 . Energy Cannon . | . . . Ballistic Gun . | . . . Ballistic Cannon 1 | . . 1 Launcher . | . . . Special Weapon . | . . . Impact Weapon . | . . . Slashing Weapon . | . . . Piercing Weapon . | . . . Special Melee Weapon . | . . . Unidentified Prototypes . | . . . Parts Lost 3 | . 2 1 Power . | . . . Propulsion 1 | . 1 . Utility . | . . . Weapon 2 | . 1 1 Highest Loss Streak 2 | . 2 1 To Critical Strikes . | . . . Average Slot Usage (%) 96 | . 96 96 Engine 14 | . 14 14 Leg 6 | . 6 . Wheel 21 | . 21 28 Device 10 | . 10 14 Storage 12 | . 12 14 Processor 1 | . 1 . Energy Gun 27 | . 28 24 Naked Turns . | . . . Heaviest Build 32 | 12 32 32 Greatest Support 32 | 20 32 26 Greatest Overweight (x) 3 | . 3 1 Average Overweight (x) . | . . 1 Largest Inventory Capacity 15 | . 15 15 Average Capacity 11 | . 11 15 Most Carried 13 | . 13 13 Average Carried 8 | . 8 13 Final Capacity 15 | 8 15 15 Final Carried 13 | 6 13 13 Class Distribution -------------------- 100% | Mutant Dominant Class ---------------- Mutant | -10/Materials Mutant | -10/Mines Resources | -11 -10 -10 ----------- Run | Yrd Mat Min Matter Collected 363 | 200 163 . Remotely . | . . . Salvage Created 712 | . 712 . Parts 47 | . 47 . Haulers Intercepted . | . . . Recyclers Shooed 2 | . 2 . Parts Field Recycled . | . . . Retrieved Matter . | . . . Parts Self-Destructed . | . . . Prevented . | . . . Kills | -11 -10 -10 ------- Run | Yrd Mat Min Combat Hostiles Destroyed 13 | . 13 . Guns 13 | . 13 . Classes Destroyed 6 | . 6 . Worker 2 | . 2 . Builder 2 | . 2 . Operator 1 | . 1 . Watcher 1 | . 1 . Swarmer 2 | . 2 . Grunt 11 | . 11 . Best Kill Streak 9 | . 9 . Combat Bots Only 9 | . 9 . Max Kills in Single Turn 1 | . 1 . Gunslinging . | . . . Exploded . | . . . Melee . | . . . Uniques/NPCs Destroyed . | . . . Combat | -11 -10 -10 -------- Run | Yrd Mat Min Hostile Shots Fired 58 | . 47 11 Missed 17 | . 16 1 Damage Taken 676 | . 352 324 Core 251 | . 52 199 Absorbed by Shields . | . . . Regen/Repaired (Parts) 34 | . 34 . Core Remaining (%) 100 | 100 . . Volleys Fired 34 | . 31 3 Largest 2 | . 2 2 Hottest 90 | . 90 90 Shots Fired 67 | . 61 6 Gun 65 | . 61 4 Cannon 2 | . . 2 Launcher . | . . . Special . | . . . Kinetic 2 | . . 2 Thermal . | . . . Explosive . | . . . Electromagnetic 65 | . 61 4 Robot Hit Streak 7 | . 7 3 Robot Miss Streak 4 | . 4 2 Penetration Max . | . . . Secondary Targets 2 | . 2 . Max Gunslinging Chain 1 | . 1 . Shots Hit Robots 41 | . 37 4 Core Hits 26 | . 22 4 Critical Kills . | . . . Critical Parts Destroyed . | . . . Critical Strikes 2 | . 2 . Corrupt 2 | . 2 . Melee Attacks . | . . . Impact . | . . . Slashing . | . . . Piercing . | . . . Sneak Attacks . | . . . Combat Hostiles . | . . . Follow-up Attacks . | . . . Damage Inflicted 704 | . 630 74 Guns 653 | . 625 28 Cannons 46 | . . 46 Explosions . | . . . Melee . | . . . Ramming 5 | . 5 . Kinetic 46 | . . 46 Thermal . | . . . Explosive . | . . . Electromagnetic 653 | . 625 28 Impact . | . . . Slashing . | . . . Piercing . | . . . Highest Corruption 1 | . 1 1 Average Corruption 1 | . 1 1 Corruption Purged . | . . . Corruption Blocked . | . . . Effects 4 | . 4 . Matter Fused 2 | . 2 . Heat Flow Errors 1 | . 1 . Data Loss (minor) 1 | . 1 . Overload Shots . | . . . Overflow Damage . | . . . Projectiles . | . . . Explosions . | . . . Melee . | . . . Knockbacks 2 | . . 2 Impact . | . . . Kinetic 2 | . . 2 Secondary . | . . . Self-Inflicted Damage 2 | . 2 . Shots . | . . . Rammed 1 | . 1 . Targets Rammed 1 | . 1 . Kicked . | . . . Crushed . | . . . Highest Temperature 210 | . 210 . Average Temperature 57 | . 57 . Received Heat Transfer 153 | . 153 . Effects 1 | . 1 . Interference 1 | . 1 . Siege Activations . | . . . Robots Corrupted . | . . . Combat Hostiles . | . . . Parts Fried 2 | . 2 . Impact Corruptions . | . . . Robots Melted . | . . . Combat Hostiles . | . . . Parts Melted . | . . . Heat Transferred . | . . . Parts Sabotaged . | . . . Parts Stolen . | . . . Parts Stripped . | . . . Power Chain Reactions . | . . . Alert | -11 -10 -10 ------- Run | Yrd Mat Min Peak Influence 282 | . 282 109 Initial 109 | . . 109 Average 85 | . 84 106 Maximum Alert Level 1 | . 1 . Low Security (%) 80 | . 79 100 Level 1 19 | . 20 . Level 2 . | . . . Level 3 . | . . . Level 4 . | . . . Level 5 . | . . . High Security . | . . . Max Security . | . . . Squads Dispatched 5 | . 4 1 Investigation 3 | . 2 1 Extermination . | . . . Reinforcement 2 | . 2 . Assault . | . . . Garrison . | . . . Intercept . | . . . Searches Triggered . | . . . Construction Impeded . | . . . Haulers Reinforced . | . . . Active Scanning Responses . | . . . Cargo Convoy Interrupts . | . . . Stealth | -11 -10 -10 --------- Run | Yrd Mat Min Distress Signals 1 | . 1 . Communications Jammed . | . . . Distress Signals . | . . . Times Spotted 23 | . 18 5 Peak Tracking Total 12 | . 12 6 Tactical Retreats 1 | . 1 . Traps | -11 -10 -10 ------- Run | Yrd Mat Min Traps Triggered 1 | . 1 . Indirectly . | . . . Trap Hack Attempts . | . . . Triggered . | . . . Disarmed . | . . . Reprogrammed . | . . . Reused . | . . . Traps Extracted . | . . . Installed . | . . . Triggered . | . . . Machines | -11 -10 -10 ---------- Run | Yrd Mat Min Machines Disabled 2 | . 2 . Max in Single Turn 1 | . 1 . Machines Repaired . | . . . Machines Dismantled . | . . . Machines Sabotaged . | . . . Overloaded Fab Kills . | . . . Hacking | -11 -10 -10 --------- Run | Yrd Mat Min Machines Accessed 4 | . 3 1 Terminals 2 | . 2 . Fabricators . | . . . Repair Stations 1 | . 1 . Recycling Units . | . . . Scanalyzers . | . . . Garrison Access . | . . . Total Hacks 11 | . 10 1 Successful 7 | . 6 1 Failed 4 | . 4 . Catastrophic 1 | . 1 . Database Lockouts . | . . . Manual 3 | . 3 . Terminals 6 | . 6 . Fabricators . | . . . Repair Stations 4 | . 4 . Recycling Units . | . . . Scanalyzers . | . . . Garrison Access . | . . . Terminal Hacks 3 | . 2 1 Prototype ID Bank 1 | . 1 . Open Door 1 | . . 1 Zone Layout 1 | . 1 . Fabricator Hacks . | . . . Repair Station Hacks 4 | . 4 . Scan Component 2 | . 2 . Repair 2 | . 2 . Recycling Unit Hacks . | . . . Scanalyzer . | . . . Garrison Access Hacks . | . . . Unauthorized Hacks . | . . . Terminals . | . . . Fabricators . | . . . Repair Stations . | . . . Recycling Units . | . . . Scanalyzers . | . . . Garrison Access . | . . . Data Cores Recovered . | . . . Used . | . . . Hacking Detections 2 | . 2 . Full Trace Events 2 | . 2 . Feedback Events 1 | . 1 . Corruption 1 | . 1 . Feedback Blocked . | . . . Robot Schematics Acquired . | . . . Robots Built . | . . . Authchips . | . . . Time . | . . . Total Robot Build Rating . | . . . Part Schematics Acquired . | . . . Parts Built . | . . . Authchips . | . . . Time . | . . . Total Part Build Rating . | . . . Parts Repaired 2 | . 2 . Time 85 | . 85 . Parts Recycled . | . . . Recycled Matter . | . . . Retrieved Matter . | . . . Retrieved Components . | . . . Parts Scanalyzed . | . . . Part Schematics Acquired . | . . . Parts Damaged . | . . . Bothacking | -11 -10 -10 ------------ Run | Yrd Mat Min Used RIF Installer . | . . . Robots Hacked . | . . . Non-combat . | . . . Combat . | . . . Robot Hacks Applied . | . . . Relay Couplers Released . | . . . Fabnet Peak Effective % . | . . . Robots Rewired . | . . . Allies Hacked . | . . . Hacks Repelled . | . . . Allies | -11 -10 -10 -------- Run | Yrd Mat Min Total Allies . | . . . Largest Group . | . . . Highest-Rated Group . | . . . Highest-Rated Ally . | . . . Total Orders . | . . . Ally Attacks . | . . . Total Damage . | . . . Kills . | . . . Allies Corrupted . | . . . Allies Melted . | . . . Intel | -11 -10 -10 ------- Run | Yrd Mat Min Robot Analysis Total . | . . . Derelict Logs Recovered . | . . . Drone Launches . | . . . Drone Recoveries . | . . . Exploration | -11 -10 -10 ------------- Run | Yrd Mat Min Turns Passed 775 | . 736 39 Spaces Moved 420 | 1 390 29 Core 1 | . 1 . Treads . | . . . Legs 57 | 1 56 . Wheels 362 | . 333 29 Hover . | . . . Flight . | . . . Fastest Speed 100 | 120 100 105 Average Speed 104 | 120 104 105 Slowest Speed 200 | 120 200 105 Overloaded Moves . | . . . Propulsion Burnouts . | . . . Robots Hopped . | . . . Cave-ins Triggered . | . . . Exploration Rate (%) 23 | 2 57 12 Regions Visited 2 Branch Regions 1 Pre-discovered Areas . | . . . Known Exits Taken . | . . . Unknown Exits Taken 2 | 1 1 . Scrap Searched . | . . . Spaces Dug . | . . . Terrain Destroyed . | . . . Melee . | . . . Projectile . | . . . AOE . | . . . Terrain Rammed . | . . . Walls Destroyed . | . . . Machines Disabled . | . . . Actions | -11 -10 -10 --------- Run | Yrd Mat Min Total 695 | . 662 33 Wait 185 | . 185 . Move 418 | . 389 29 Hop . | . . . Pick Up 19 | . 19 . Fast Attach 4 | . 3 1 Attach 5 | . 5 . Detach 4 | . 4 . Swap 10 | . 10 . Drop 15 | . 15 . Fire 34 | . 31 3 Melee . | . . . Ram 1 | . 1 . Kick . | . . . Crush . | . . . Escape Stasis . | . . . Rewire . | . . . Trap . | . . . Miscellaneous . | . . . Route ------- -11/Scrapyard -10/Materials (discovered 4 exits: [*Mat x2] / *Min x2) -10/Mines History --------- Turn | Location | Event 1 | -11/Scrapyard | Discovered new exit (range 0) 1 | -11/Scrapyard | Entered Materials 288 | -10/Materials | Discovered new exit (range 5) 304 | -10/Materials | Build established: Mutant 370 | -10/Materials | Discovered new exit (range 12) 450 | -10/Materials | Repaired Hvy. EM Pulse Gun 505 | -10/Materials | Repaired Corrupted Imp. Heat Sink 567 | -10/Materials | Discovered new exit (range 5) 608 | -10/Materials | Destroyed 9 combat bots 661 | -10/Materials | Discovered new exit (range 9) 737 | -10/Materials | Entered Mines 738 | -10/Mines | Assembled infested the area 739 | -10/Mines | Met a Derelict bent on vengeance 767 | -10/Mines | Met a Derelict shopkeep closing up shop 772 | -10/Mines | Core integrity fell below 50% 776 | -10/Mines | Destroyed by D-53 Grenadier with Mini Grenade Launcher Last Messages --------------- >>Open Door Sealed Doors opened. 00767_ E3-4C5(g): "Sorry, the Unaware have moved into these parts and I'm closing up shop. No more sales from me!" 00767_ C-30 ARC bursts open, deploying its payload. 00767_ D-53 Grenadier unfolds itself. 00767_ Hvy. EM Pulse Gun destroyed. 00767_ SHOP.Sys disabled. 00769_ ALERT: Derelict activity detected in mines. Dispatching investigation squad. 00771_ E3-4C5(g): "Take whatever you can and run for it!" 00771_ Acquired Flak Cannon. 00771_ E3-4C5(g) destroyed. 00771_ as-26074 destroyed. 00771_ Machine disabled. 00772_ as-62531 destroyed. 00772_ D-53 Grenadier knocked back. 00775_ The unstable cave ceiling collapses. 00775_ as-83987 destroyed. 00775_ D-53 Grenadier knocked back. Map ----- +----------------------------------------------------+ | ???????????????????????????????????? | | ???????????????????????????????????? | | ???????????????????????????????????? | | ???????????????????????????????????? | | ???????????????????????????????????? | | ???????????????????????????????????? | | ???????????????????????????????????? | | ???????????????????????????????????? | | ???????????????????????????????????? | | ???????????????????????????????????? | | ???????????????????????????????????? | | ???????????????????????????????????? | | ???????????????????????????????????? | | ???????????????????????????????????? | | ???????????????????????????????????? | | ???????????????????????????????????? | | ???????????????????????????????????? | | ???????????????????????????????????? | | ??????????????????#????????????????? | | ?????????????????"#????????????????? | | ????????????????#%#????????????????? | | ???????######### "##???????????????? | | ???????# # # #???????????????? | | ??????## # #???????????????? | | ??????# # d ##??????????????? | | ???????#"[ @ d #??????????????? | | ???????# % ##?????????????? | | ??????# ] # #?????????????? | | ??????## ! # #?????????????? | | ???????#"! #?????????????? | | ??????## ##?????????????? | | ??????# ###??????????????? | | ??????# ##????????????????? | | ??????# #?????????????????? | | ??????# # #?????????????????? | | ?????## ##### ?????????????????? | | ????## ##??# ???????????????? | | ???## ###########??????????????? | | ???# ##???????????????????? | | ???# ##??????????????????? | | ???# #??????????????????? | | ???## ##### #????????????? | | ????### #????????????? | | ??????## ##### #????????????? | | ???????### #??????????????????? | | ?????????## ##??????????????????? | | ??????????## ##???????????????????? | | ???????????# ##????????????????????? | | ???????????# #?????????????????????? | | ???????????# #?????????????????????? | +----------------------------------------------------+ Best States ------------- Heat Dissipation 39 Energy Generation 10 Energy Capacity 250 Matter Stores 300 Matter Capacity 300 Sight Range 16 Terrain Scan Range 14 Terrain Scan Density 85 Evasion (%) 55 Item Schematics ----------------- None Robot Schematics ------------------ None Fabricated ------------ Nothing Alien Tech Used ----------------- None Achievements -------------- None Challenges ------------ None Game ------ Seed InertialMagneticNullifier Manual? 0 Play Time 00:04:27 Cumulative 682.6 hours Start 2024.03.01 @ 13:19:01 End 2024.03.01 @ 13:23:03 Sessions 1 Manual Loads 0 Difficulty Rogue Special Mode None Game No. 705 Rogue 430 Adventurer 123 Explorer 152 Win Type - Total 25 Types 19/0/4/1/0/0/0/1/0 Lore% 80 Gallery% 91 Achievement% 76 Wizard Run 0 Options --------- Layout 0 ASCII 0 Keyboard 1 Movement Numpad Keybinds 0 Fullscreen 2 Font 18/SmallcapsGlow Map View 76x50 Zoom Use 0% Tactical HUD 1 Map Filters NONE Filters NONE Steam 1 RUN: bb426a23-3e44-40fe-a985-98af34685c09